fUSD/lending_fUSD_20260417
["ID","MTS","AMOUNT","RATE_DAILY","PERIOD"]
[420646809,1776418232806,-150.0,9.64e-05,2]
[420646811,1776418232816,-160.0,9.698e-05,2]
[420646813,1776418232826,-515.0,9.708e-05,3]
[420646816,1776418232836,-500.0,9.718e-05,2]
[420646818,1776418232846,-584.10959855,9.718e-05,2]
[420646820,1776418232857,-150.0,9.718e-05,2]
[420646822,1776418232866,-150.0,9.718e-05,2]
[420646824,1776418232876,-226.09948749,9.718e-05,2]
[420646826,1776418232887,-1377.42282659,9.782e-05,2]
[420646828,1776418232897,-187.78006525,9.782e-05,2]
[420646830,1776418232907,-150.0,9.79e-05,2]
[420646832,1776418232918,-1300.0,9.8e-05,3]
[420646834,1776418232928,-2500.0,9.893e-05,2]
[420646836,1776418232938,-4917.3983,9.893e-05,2]
[420646838,1776418232948,-3494.4761074,9.9e-05,2]
[420646839,1776418232958,-2700.0,9.9e-05,3]
[420646840,1776418232968,-714.89581024,9.9e-05,2]
[420646841,1776418232979,-208.04,9.943e-05,2]
[420646842,1776418232988,-252.83565639,9.973e-05,2]
[420646843,1776418232998,-500.0,9.973e-05,2]
[420646844,1776418233009,-502.34190409,9.973e-05,2]
[420646845,1776418233019,-442.39072538,9.973e-05,2]
[420646852,1776418239053,-57.60927462,9.973e-05,2]
[420646853,1776418239064,-500.0,9.973e-05,2]
[420646854,1776418239075,-167.8661672,9.973e-05,2]
[420646855,1776418239085,-500.0,9.973e-05,2]
[420646856,1776418239095,-500.0,9.973e-05,2]
[420646857,1776418239104,-171.2065889,9.973e-05,2]
[420646858,1776418239114,-150.0,9.973e-05,2]
[420646859,1776418239123,-150.0,9.973e-05,2]
[420646860,1776418239132,-151.72396292,9.973e-05,2]
[420646861,1776418239141,-150.7678493,9.973e-05,2]
[420646862,1776418239150,-152.88062368,9.973e-05,2]
[420646863,1776418239159,-150.0,9.973e-05,2]
[420646864,1776418239168,-151.06661038,9.973e-05,2]
[420646865,1776418239177,-151.03186045,9.973e-05,2]
[420646866,1776418239187,-150.0,9.973e-05,2]
[420646867,1776418239196,-150.0,9.973e-05,2]
[420646868,1776418239205,-150.0,9.973e-05,2]
[420646869,1776418239214,-174.35925211,9.992e-05,2]
[420646870,1776418239224,-500.0,9.992e-05,2]
[420646871,1776418239233,-245.73960365,9.992e-05,2]
[420646872,1776418239242,-175.86222026,9.992e-05,2]
[420646873,1776418239251,-500.0,9.992e-05,2]
[420646874,1776418239261,-500.0,9.992e-05,2]
[420646875,1776418239270,-298.26240554,9.992e-05,2]
[420646876,1776418239279,-500.0,9.992e-05,2]
[420646877,1776418239288,-500.0,9.992e-05,2]
[420646878,1776418239297,-500.0,9.992e-05,2]
[420646879,1776418239307,-171.28894867,9.992e-05,2]
[420646880,1776418239317,-500.0,9.992e-05,2]
[420646881,1776418239326,-500.0,9.992e-05,2]
[420646882,1776418239336,-500.0,9.992e-05,2]
[420646883,1776418239345,-500.0,9.992e-05,2]
[420646884,1776418239354,-500.0,9.992e-05,2]
[420646885,1776418239364,-500.0,9.992e-05,2]
[420646886,1776418239373,-546.29524761,9.992e-05,2]
[420646887,1776418239383,-500.0,9.992e-05,2]
[420646888,1776418239392,-500.0,9.992e-05,2]
[420646889,1776418239401,-500.0,9.992e-05,2]
[420646890,1776418239410,-500.0,9.992e-05,2]
[420646891,1776418239419,-500.0,9.992e-05,2]
[420646892,1776418239429,-500.0,9.992e-05,2]
[420646893,1776418239439,-500.0,9.992e-05,2]
[420646894,1776418239448,-500.0,9.992e-05,2]
[420646895,1776418239457,-500.0,9.992e-05,2]
[420646896,1776418239467,-500.0,9.992e-05,2]
[420646897,1776418239476,-482.42942475,9.992e-05,2]
[420646898,1776418239485,-500.0,9.992e-05,2]
[420646899,1776418239494,-500.0,9.992e-05,2]
[420646900,1776418239504,-500.0,9.992e-05,2]
[420646901,1776418239513,-500.0,9.992e-05,2]
[420646902,1776418239522,-500.0,9.992e-05,2]
[420646903,1776418239532,-500.0,9.992e-05,2]
[420646904,1776418239541,-500.0,9.992e-05,2]
[420646905,1776418239551,-500.0,9.992e-05,2]
[420646906,1776418239562,-500.0,9.992e-05,2]
[420646907,1776418239571,-500.0,9.992e-05,2]
[420646908,1776418239581,-500.0,9.992e-05,2]
[420646909,1776418239591,-500.0,9.992e-05,2]
[420646910,1776418239600,-500.0,9.992e-05,2]
[420646911,1776418239609,-500.0,9.992e-05,2]
[420646912,1776418239619,-500.0,9.992e-05,2]
[420646913,1776418239628,-500.0,9.992e-05,2]
[420646914,1776418239637,-500.0,9.992e-05,2]
[420646915,1776418239647,-500.0,9.992e-05,2]
[420646916,1776418239656,-500.0,9.992e-05,2]
[420646917,1776418239666,-500.0,9.992e-05,2]
[420646918,1776418239676,-500.0,9.992e-05,2]
[420646919,1776418239685,-500.0,9.992e-05,2]
[420646920,1776418239694,-500.0,9.992e-05,2]
[420646921,1776418239703,-500.0,9.992e-05,2]
[420646922,1776418239714,-500.0,9.992e-05,2]
[420646923,1776418239723,-500.0,9.992e-05,2]
[420646924,1776418239733,-500.0,9.992e-05,2]
[420646925,1776418239743,-500.0,9.992e-05,2]
[420646926,1776418239753,-500.0,9.992e-05,2]
[420646927,1776418239762,-500.0,9.992e-05,2]
[420646928,1776418239771,-500.0,9.992e-05,2]
[420646929,1776418239782,-500.0,9.992e-05,2]
[420646930,1776418239793,-500.0,9.992e-05,2]
[420646931,1776418239802,-500.0,9.992e-05,2]
[420646932,1776418239814,-500.0,9.992e-05,2]
[420646933,1776418239823,-500.0,9.992e-05,2]
[420646934,1776418239832,-500.0,9.992e-05,2]
[420646935,1776418239842,-500.0,9.992e-05,2]
[420646936,1776418239852,-500.0,9.992e-05,2]
[420646937,1776418239862,-500.0,9.992e-05,2]
[420646938,1776418239872,-500.0,9.992e-05,2]
[420646940,1776418239882,-150.0,9.992e-05,2]
[420646942,1776418239892,-500.0,9.992e-05,2]
[420646944,1776418239901,-500.0,9.992e-05,2]
[420646946,1776418239910,-500.0,9.992e-05,2]
[420646947,1776418239920,-500.0,9.992e-05,2]
[420646948,1776418239930,-530.45567429,9.992e-05,2]
[420646950,1776418239939,-150.0,9.992e-05,2]
[420646952,1776418239949,-300.0,9.992e-05,2]
[420646954,1776418239958,-150.0,9.992e-05,2]
[420646956,1776418239967,-512.8,9.992e-05,2]
[420646958,1776418239976,-250.0,9.992e-05,2]
[420646960,1776418239985,-12079.37237027,9.993e-05,2]
[420647015,1776418240492,-3797.99224918,9.993e-05,2]
[420647016,1776418240973,-5557.62130061,9.993e-05,2]
[420647025,1776418243686,-2473.0,9.445e-05,2]
[420647026,1776418243697,-366.0,9.799e-05,7]
[420647027,1776418243707,-14468.3632301,9.993e-05,2]
[420647028,1776418243783,-383.67968083,9.993e-05,2]
[420647029,1776418243796,-25244.65804062,9.993e-05,2]
[420647030,1776418243808,-158284.32074854,9.993e-05,2]
[420647031,1776418243820,-72251.05482503,9.993e-05,2]
[420647039,1776418247587,-761.61552802,9.993e-05,2]
[420647040,1776418247676,-3790.89547694,9.993e-05,2]
[420647041,1776418247711,-732.5472,9.993e-05,2]
[420647042,1776418247723,-56149.8029476,9.993e-05,2]
[420647046,1776418474216,150.0,8.22e-05,2]
[420647047,1776418511287,159.0,8.22e-05,3]
[420647048,1776418511976,471.0,8.22e-05,3]
[420647063,1776418595197,150.0,8.22e-05,2]
[420647067,1776418627840,448.0,8.22e-05,3]
[420647068,1776418646010,8772.01,8.3e-05,2]
[420647069,1776418646038,10000.01,8.3e-05,2]
[420647070,1776418646063,6442.76146841,8.3e-05,2]
[420647071,1776418662642,150.0,8.22e-05,2]
[420647072,1776418664279,3407.24853159,8.282e-05,2]
[420647073,1776418664304,285.33146841,8.282e-05,2]
[420647075,1776418687004,476.0,8.22e-05,3]
[420647107,1776418717017,8264.45,8.27e-05,2]
[420647110,1776418747102,452.0,8.22e-05,3]
[420647111,1776418776928,150.0,8.22e-05,2]
[420647112,1776418809069,372.22853159,8.22e-05,3]
[420647113,1776418809092,56.77146841,8.22e-05,3]
[420647115,1776418838873,928.0,0.000165,30]
[420647116,1776418845443,150.0,8.22e-05,2]
[420647117,1776418866372,500.0,0.0001584,30]
[420647118,1776418868674,500.0,0.0001584,30]
[420647119,1776418868916,529.25409057,0.0001584,30]
[420647120,1776418873339,408.0,8.22e-05,3]
[420647124,1776418938004,2426.93,8.079e-05,2]
[420647125,1776418949082,150.0,8.22e-05,2]
[420647128,1776418988010,387.0,8.22e-05,3]
[420647129,1776419014874,150.0,8.22e-05,2]
[420647130,1776419047734,368.0,8.22e-05,3]
[420647131,1776419047811,5903.30853159,8.13e-05,2]
[420647132,1776419047835,5533.73146841,8.13e-05,2]
[420647133,1776419111528,159.0,8.22e-05,3]
[420647134,1776419112229,350.0,8.22e-05,3]
[420647135,1776419117967,150.0,8.22e-05,2]
[420647136,1776419164754,332.0,8.22e-05,3]
[420647137,1776419184099,150.0,8.22e-05,2]
[420647139,1776419225728,326.0,8.22e-05,3]
[420647140,1776419271306,500.0,8.044e-05,2]
[420647141,1776419285298,309.0,8.22e-05,3]
[420647142,1776419290785,169.45,6.387e-05,2]
[420647143,1776419290832,169.45,7.186e-05,2]
[420647144,1776419290872,169.45,7.984e-05,2]
[420647145,1776419291504,150.0,8.22e-05,2]
[420647147,1776419345847,200.0,7.944e-05,2]
[420647148,1776419345946,294.0,8.22e-05,3]
[420647150,1776419366228,150.0,8.22e-05,2]
[420647154,1776419405475,159.0,8.22e-05,3]
[420647155,1776419405707,279.0,8.22e-05,3]
[420647167,1776419431938,-150.0,8.401e-05,2]
[420647168,1776419431948,-632.01513129,8.422e-05,2]
[420647169,1776419431959,-1677.57210991,8.422e-05,2]
[420647170,1776419431969,-490.52499013,8.427e-05,2]
[420647171,1776419432002,-1289.06500987,8.427e-05,2]
[420647172,1776419432012,-175.7234719,8.435e-05,2]
[420647173,1776419432022,-1200.0,8.435e-05,2]
[420647174,1776419432031,-2335.21265804,8.436e-05,2]
[420647175,1776419432043,-374.94758386,8.436e-05,2]
[420647176,1776419432142,-41256.3757581,8.436e-05,2]
[420647177,1776419432152,-822.689,8.536e-05,2]
[420647178,1776419432162,-175.72347188,8.6e-05,2]
[420647179,1776419432172,-150.0,8.699e-05,2]
[420647180,1776419432184,-9987.52,8.7e-05,2]
[420647181,1776419432196,-500.0,8.753e-05,2]
[420647182,1776419432206,-167.8661672,8.753e-05,2]
[420647183,1776419432215,-305.3792051,8.753e-05,2]
[420647184,1776419432227,-171.2065889,8.753e-05,2]
[420647185,1776419432237,-500.0,8.753e-05,2]
[420647186,1776419432249,-500.0,8.753e-05,2]
[420647187,1776419432260,-500.0,8.753e-05,2]
[420647188,1776419432271,-175.72347188,8.764e-05,2]
[420647189,1776419432281,-150.0,8.764e-05,2]
[420647190,1776419432293,-299.99,8.764e-05,2]
[420647191,1776419432304,-23731.64940171,8.774e-05,2]
[420647252,1776419434160,-61142.66784341,8.774e-05,2]
[420647253,1776419434171,-49476.22155966,8.774e-05,2]
[420647254,1776419434182,-63102.10579455,8.774e-05,2]
[420647255,1776419434259,-174.35925211,8.773e-05,2]
[420647256,1776419434269,-175.86222026,8.773e-05,2]
[420647257,1776419434279,-500.0,8.773e-05,2]
[420647258,1776419434288,-500.0,8.773e-05,2]
[420647259,1776419434297,-331.88436739,8.773e-05,2]
[420647260,1776419434306,-1758.02081711,8.774e-05,2]
[420647261,1776419434319,-27765.027188,8.774e-05,2]
[420647262,1776419434749,-406.6673292,8.773e-05,2]
[420647269,1776419437627,-93.3326708,8.773e-05,2]
[420647270,1776419437638,-409.2418166,8.773e-05,2]
[420647271,1776419437647,-298.26240554,8.773e-05,2]
[420647272,1776419437657,-500.0,8.773e-05,2]
[420647273,1776419437667,-500.0,8.773e-05,2]
[420647274,1776419437677,-4488.89973211,8.774e-05,2]
[420647296,1776419439787,-1691.2544062,8.774e-05,2]
[420647297,1776419439798,-4017.76492,8.774e-05,2]
[420647298,1776419439810,-53271.0180846,8.774e-05,2]
[420647299,1776419439821,-42357.35242812,8.774e-05,2]
[420647300,1776419439832,-580.23789574,8.774e-05,2]
[420647301,1776419439844,-3469.7027034,8.774e-05,2]
[420647302,1776419439860,-313.94714631,8.774e-05,2]
[420647325,1776419446638,-5532.0,8.774e-05,2]
[420647363,1776419447656,-7059.59999998,8.774e-05,2]
[420647364,1776419447699,-1790.81887213,8.774e-05,2]
[420647365,1776419447711,-2935.5219469,8.774e-05,2]
[420647366,1776419447919,-5156.0,8.774e-05,2]
[420647367,1776419447963,-2516.88096098,8.774e-05,2]
[420647368,1776419447975,-9175.66187255,8.774e-05,2]
[420647369,1776419543923,150.0,8.229e-05,2]
[420647370,1776419568294,454.7477,8.301e-05,2]
[420647371,1776419590286,155.0,8.301e-05,3]
[420647372,1776419650325,155.0,8.301e-05,3]
[420647373,1776419650599,155.36,8.219e-05,2]
[420647374,1776419659287,150.0,8.22e-05,2]
[420647376,1776419680867,6653.3,7.871e-05,2]
[420647377,1776419711754,157.0,7.871e-05,3]
[420647378,1776419712154,263.0,7.871e-05,3]
[420647379,1776419725885,150.0,8.22e-05,2]
[420647380,1776419767360,250.0,7.871e-05,3]
[420647381,1776419796006,1456.6023,7.814e-05,2]
[420647382,1776419796028,7541.0577,7.814e-05,2]
[420647383,1776419823155,150.0,8.22e-05,2]
[420647384,1776419888924,238.0,7.871e-05,3]
[420647385,1776419952072,150.0,8.22e-05,2]
[420647387,1776419986201,1920.9523,7.831e-05,2]
[420647388,1776419986223,7647.9677,7.831e-05,2]
[420647391,1776420005808,226.0,7.871e-05,3]
[420647392,1776420049432,150.0,8.22e-05,2]
[420647393,1776420066455,214.0,7.871e-05,3]
[420647394,1776420115924,150.0,8.22e-05,2]
[420647395,1776420119341,1600.0,7.773e-05,2]
[420647396,1776420130255,12.0423,7.871e-05,3]
[420647397,1776420130277,191.9577,7.871e-05,3]
[420647399,1776420186783,194.0,7.871e-05,3]
[420647400,1776420220494,150.0,0.0001649,30]
[420647401,1776420227709,150.0,8.22e-05,2]
[420647402,1776420246915,184.0,7.871e-05,3]
[420647403,1776420276525,327.72,7.758e-05,2]
[420647406,1776420293839,150.0,8.22e-05,2]
[420647407,1776420311537,157.0,7.871e-05,3]
[420647408,1776420311711,175.0,7.871e-05,3]
[420647409,1776420323113,150.0,7.89e-05,2]
[420647410,1776420323148,150.0,8.11e-05,2]
[420647411,1776420329220,150.0,7.89e-05,2]
[420647412,1776420330581,150.0,7.89e-05,2]
[420647413,1776420330728,150.0,7.89e-05,2]
[420647414,1776420332483,152.88062368,7.89e-05,2]
[420647415,1776420335425,150.0,0.000165,30]
[420647416,1776420335853,150.76784931,7.89e-05,2]
[420647417,1776420335920,150.0,7.89e-05,2]
[420647418,1776420335949,150.0,8.11e-05,2]
[420647419,1776420337476,151.06661037,7.89e-05,2]
[420647421,1776420338950,151.03186045,7.89e-05,2]
[420647422,1776420341414,150.0,7.89e-05,2]
[420647423,1776420341460,150.0,8.11e-05,2]
[420647424,1776420347016,150.0,7.89e-05,2]
[420647425,1776420347201,150.0,7.89e-05,2]
[420647426,1776420347269,150.0,8.066e-05,2]
[420647427,1776420347340,150.0,8.241e-05,2]
[420647428,1776420347679,150.0,8.11e-05,2]
[420647429,1776420347710,150.0,7.89e-05,2]
[420647430,1776420347922,-374.4707366,8.306e-05,2]
[420647431,1776420365461,166.0,7.871e-05,3]
[420647432,1776420384575,150.0,8.22e-05,2]
[420647434,1776420391671,477.0,0.000165,30]
[420647435,1776420425921,158.0,7.871e-05,3]
[420647436,1776420432410,166.76,7.908e-05,2]
[420647438,1776420464950,3929.05,7.655e-05,2]
[420647440,1776420493547,150.0,7.871e-05,3]
[420647441,1776420518585,150.0,8.22e-05,2]
[420647442,1776420544415,2000.0,8.219e-05,2]
[420647443,1776420547791,150.0,7.871e-05,3]
[420647451,1776420603067,2080.2,7.666e-05,2]
[420647452,1776420603090,9060.82,7.666e-05,2]
[420647453,1776420605965,150.0,7.871e-05,3]
[420647454,1776420607756,158.0,7.871e-05,3]
[420647455,1776420615509,150.0,8.22e-05,2]
[420647460,1776420631715,-17.5292634,8.306e-05,2]
[420647462,1776420631724,-204.18886496,8.312e-05,2]
[420647463,1776420631734,-629.56597233,8.317e-05,2]
[420647464,1776420631776,-373.55412847,8.317e-05,2]
[420647465,1776420631787,-150.0,8.329e-05,2]
[420647466,1776420631796,-150.0,8.329e-05,2]
[420647467,1776420631806,-150.0,8.329e-05,2]
[420647468,1776420631817,-150.0,8.329e-05,2]
[420647469,1776420631826,-150.0,8.416e-05,2]
[420647470,1776420631836,-150.0,8.422e-05,2]
[420647471,1776420631848,-379.09387153,8.449e-05,2]
[420647472,1776420631860,-200.35157443,8.449e-05,2]
[420647473,1776420631871,-300.0,8.499e-05,2]
[420647474,1776420631880,-249.31872488,8.499e-05,2]
[420647475,1776420631920,-827.19197519,8.499e-05,2]
[420647476,1776420631958,-123.48929993,8.499e-05,2]
[420647477,1776420631968,-589.26070507,8.5e-05,2]
[420647478,1776420631980,-487.38503545,8.5e-05,2]
[420647479,1776420631992,-221221.05787865,8.5e-05,2]
[420647480,1776420632004,-37189.17678083,8.5e-05,2]
[420647481,1776420632013,-200.0,8.5e-05,2]
[420647482,1776420632023,-200.0,8.5e-05,2]
[420647483,1776420632038,-200.0,8.5e-05,2]
[420647484,1776420632048,-200.0,8.5e-05,2]
[420647485,1776420632059,-200.0,8.5e-05,2]
[420647486,1776420632069,-150.0,8.548e-05,2]
[420647487,1776420632078,-150.0,8.548e-05,2]
[420647488,1776420632088,-150.0,8.548e-05,2]
[420647489,1776420632098,-150.0,8.548e-05,2]
[420647491,1776420632108,-166.76,8.56e-05,2]
[420647493,1776420632118,-500.0,8.573e-05,2]
[420647495,1776420632127,-500.20553032,8.573e-05,2]
[420647497,1776420632137,-500.0,8.573e-05,2]
[420647499,1776420632147,-500.0,8.573e-05,2]
[420647501,1776420632156,-500.0,8.573e-05,2]
[420647504,1776420632166,-377.68539666,8.573e-05,2]
[420647506,1776420632177,-500.0,8.573e-05,2]
[420647509,1776420632186,-500.0,8.573e-05,2]
[420647513,1776420632196,-500.0,8.573e-05,2]
[420647517,1776420632206,-150.0,8.592e-05,2]
[420647521,1776420632216,-151.0,8.597e-05,2]
[420647525,1776420632226,-500.0,8.599e-05,2]
[420647528,1776420632237,-250.0,8.599e-05,2]
[420647531,1776420632247,-500.0,8.599e-05,2]
[420647534,1776420632257,-500.0,8.599e-05,2]
[420647538,1776420632267,-292.62039179,8.599e-05,2]
[420647541,1776420632277,-393.78368388,8.599e-05,2]
[420647545,1776420632287,-500.0,8.599e-05,2]
[420647548,1776420632296,-486.46927162,8.599e-05,2]
[420647550,1776420632306,-500.0,8.599e-05,2]
[420647551,1776420632316,-500.0,8.599e-05,2]
[420647553,1776420632325,-500.0,8.599e-05,2]
[420647554,1776420632335,-500.0,8.599e-05,2]
[420647556,1776420632346,-500.0,8.599e-05,2]
[420647558,1776420632358,-500.0,8.599e-05,2]
[420647560,1776420632367,-500.0,8.599e-05,2]
[420647562,1776420632378,-500.0,8.599e-05,2]
[420647563,1776420632388,-500.0,8.599e-05,2]
[420647564,1776420632398,-500.0,8.599e-05,2]
[420647565,1776420632409,-500.0,8.599e-05,2]
[420647566,1776420632419,-500.0,8.599e-05,2]
[420647567,1776420632434,-312.76715556,8.599e-05,2]
[420647568,1776420632446,-500.0,8.599e-05,2]
[420647569,1776420632457,-500.0,8.599e-05,2]
[420647570,1776420632467,-500.0,8.599e-05,2]
[420647571,1776420632478,-500.0,8.599e-05,2]
[420647572,1776420632489,-500.0,8.599e-05,2]
[420647573,1776420632499,-500.0,8.599e-05,2]
[420647574,1776420632510,-500.0,8.599e-05,2]
[420647575,1776420632520,-500.0,8.599e-05,2]
[420647576,1776420632531,-500.0,8.599e-05,2]
[420647577,1776420632543,-500.0,8.599e-05,2]
[420647578,1776420632553,-500.0,8.599e-05,2]
[420647579,1776420632563,-500.0,8.599e-05,2]
[420647580,1776420632573,-500.0,8.599e-05,2]
[420647581,1776420632584,-500.0,8.599e-05,2]
[420647582,1776420632593,-500.0,8.599e-05,2]
[420647583,1776420632603,-500.0,8.599e-05,2]
[420647584,1776420632614,-500.0,8.599e-05,2]
[420647585,1776420632625,-579.98560565,8.599e-05,2]
[420647586,1776420632635,-579.98560565,8.599e-05,2]
[420647587,1776420632646,-579.98560565,8.599e-05,2]
[420647588,1776420632660,-579.98560565,8.599e-05,2]
[420647589,1776420632670,-579.98560565,8.599e-05,2]
[420647590,1776420632680,-579.98560565,8.599e-05,2]
[420647591,1776420632691,-579.98560565,8.599e-05,2]
[420647592,1776420632701,-579.98560565,8.599e-05,2]
[420647593,1776420632711,-579.98560565,8.599e-05,2]
[420647594,1776420632723,-579.98560565,8.599e-05,2]
[420647595,1776420632736,-579.98560565,8.599e-05,2]
[420647596,1776420632746,-579.98560565,8.599e-05,2]
[420647597,1776420632757,-579.98560565,8.599e-05,2]
[420647598,1776420632766,-579.98560565,8.599e-05,2]
[420647599,1776420632777,-579.98560565,8.599e-05,2]
[420647600,1776420632786,-579.98560565,8.599e-05,2]
[420647601,1776420632796,-579.98560565,8.599e-05,2]
[420647602,1776420632806,-579.98560565,8.599e-05,2]
[420647603,1776420632815,-579.98560565,8.599e-05,2]
[420647604,1776420632825,-579.98560565,8.599e-05,2]
[420647605,1776420632835,-579.98560565,8.599e-05,2]
[420647606,1776420632845,-579.98560565,8.599e-05,2]
[420647607,1776420632855,-579.98560565,8.599e-05,2]
[420647608,1776420632865,-579.98560565,8.599e-05,2]
[420647609,1776420632875,-579.98560565,8.599e-05,2]
[420647610,1776420632885,-506.31136853,8.599e-05,2]
[420647611,1776420632899,-73.67423712,8.599e-05,2]
[420647612,1776420632909,-579.98560565,8.599e-05,2]
[420647613,1776420632919,-579.98560565,8.599e-05,2]
[420647614,1776420632928,-579.98560565,8.599e-05,2]
[420647615,1776420632938,-579.98560565,8.599e-05,2]
[420647616,1776420632947,-579.98560565,8.599e-05,2]
[420647617,1776420632957,-579.98560565,8.599e-05,2]
[420647618,1776420632967,-579.98560565,8.599e-05,2]
[420647619,1776420632977,-579.98560565,8.599e-05,2]
[420647620,1776420632986,-579.98560565,8.599e-05,2]
[420647622,1776420632996,-579.98560565,8.599e-05,2]
[420647623,1776420633006,-579.98560565,8.599e-05,2]
[420647624,1776420633016,-579.98560565,8.599e-05,2]
[420647625,1776420633027,-579.98560565,8.599e-05,2]
[420647626,1776420633037,-579.98560565,8.599e-05,2]
[420647627,1776420633046,-579.98560565,8.599e-05,2]
[420647628,1776420633059,-579.98560565,8.599e-05,2]
[420647629,1776420633069,-587.23542573,8.599e-05,2]
[420647630,1776420633080,-587.23542573,8.599e-05,2]
[420647631,1776420633090,-587.23542573,8.599e-05,2]
[420647632,1776420633100,-587.23542573,8.599e-05,2]
[420647633,1776420633110,-587.23542573,8.599e-05,2]
[420647634,1776420633120,-587.23542573,8.599e-05,2]
[420647635,1776420633130,-587.23542573,8.599e-05,2]
[420647636,1776420633140,-587.23542573,8.599e-05,2]
[420647637,1776420633150,-587.23542573,8.599e-05,2]
[420647638,1776420633160,-587.23542573,8.599e-05,2]
[420647639,1776420633170,-587.23542573,8.599e-05,2]
[420647640,1776420633180,-587.23542573,8.599e-05,2]
[420647641,1776420633190,-587.23542573,8.599e-05,2]
[420647642,1776420633201,-587.23542573,8.599e-05,2]
[420647643,1776420633210,-587.23542573,8.599e-05,2]
[420647644,1776420633220,-483.579,8.6e-05,2]
[420647645,1776420633231,-125964.25178111,8.6e-05,2]
[420647646,1776420633244,-217924.91128393,8.6e-05,2]
[420647647,1776420633279,-675.352,8.6e-05,2]
[420647688,1776420640548,-171.67995488,8.329e-05,2]
[420647689,1776420640558,-200.0,8.5e-05,2]
[420647690,1776420640568,-200.0,8.5e-05,2]
[420647691,1776420640577,-200.0,8.5e-05,2]
[420647692,1776420640587,-754.16652698,8.6e-05,2]
[420647693,1776420640610,-53273.54864282,8.6e-05,2]
[420647694,1776420641068,-1515.4,8.6e-05,2]
[420647701,1776420643622,-160.16401396,8.573e-05,2]
[420647702,1776420643633,-500.0,8.599e-05,2]
[420647703,1776420643643,-430043.70106516,8.6e-05,2]
[420647704,1776420643653,-2627.9045,8.6e-05,2]
[420647705,1776420643663,-20877.70764964,8.625e-05,2]
[420647706,1776420643673,-249.65,8.656e-05,2]
[420647707,1776420643683,-658.151,8.656e-05,2]
[420647708,1776420643693,-6534.05,8.685e-05,2]
[420647709,1776420643703,-500.0,8.685e-05,2]
[420647710,1776420643714,-151.0,8.697e-05,2]
[420647711,1776420643724,-154.7246712,8.697e-05,2]
[420647712,1776420643734,-151.0,8.697e-05,2]
[420647713,1776420643745,-3835.00731635,8.698e-05,2]
[420647714,1776420643755,-262640.42861262,8.7e-05,3]
[420647715,1776420643767,-37970.9409471,8.7e-05,3]
[420647716,1776420643779,-14210.3015,8.7e-05,3]
[420647743,1776420646964,-2214.26361535,8.7e-05,3]
[420647744,1776420647000,-816.81615149,8.7e-05,3]
[420647745,1776420647069,-2177.0,8.7e-05,3]
[420647746,1776420729461,150.0,8.101e-05,2]
[420647748,1776420792735,150.0,8.101e-05,3]
[420647749,1776420806402,300.0,0.000165,30]
[420647760,1776421140662,2000.0,0.000165,30]
[420647768,1776421459713,181.19,8.303e-05,2]
[420647769,1776421459734,872.38286162,8.303e-05,2]
[420647770,1776421515762,150.0,7.718e-05,2]
[420647771,1776421525899,150.0,7.718e-05,2]
[420647772,1776421532244,151.72396292,7.718e-05,2]
[420647773,1776421532282,150.0,7.718e-05,2]
[420647774,1776421532323,150.0,8.147e-05,2]
[420647775,1776421539030,153.88149916,7.718e-05,2]
[420647776,1776421544106,258.80296177,7.718e-05,2]
[420647777,1776421544142,255.98583651,7.718e-05,2]
[420647778,1776421544406,153.80598328,7.718e-05,2]
[420647814,1776421622254,-150.0,8.351e-05,2]
[420647815,1776421641373,-782.206,8.428e-05,2]
[420647816,1776421641399,-174.49007527,8.428e-05,2]
[420647817,1776421641425,-1200.0,8.499e-05,2]
[420647818,1776421641451,-272.0,8.499e-05,2]
[420647819,1776421641479,-9721.30392473,8.5e-05,2]
[420647821,1776421686751,150.0,8.22e-05,2]
[420647824,1776421754084,150.0,8.22e-05,2]
[420647825,1776421804154,653.92,7.776e-05,2]
[420647826,1776421825604,169.45,6.174e-05,2]
[420647841,1776421832200,-1200.0,8.399e-05,2]
[420647842,1776421832210,-300.0,8.399e-05,2]